[Event "*** Titled Tuesday Blitz"]
[Site "Chess.com"]
[Date "2018.08.07"]
[Round "7"]
[White "ChessicallyInclined"]
[Black "guillembaches"]
[Result "0-1"]
[WhiteElo "2354"]
[BlackElo "2253"]
[TimeControl "180+2"]
[EndTime "14:34:24 PDT"]
[Termination "guillembaches won by resignation"]

1. d4 {[%clk 0:03:01.9]} 1... Nf6 {[%clk 0:03:00.2]} 2. c4 {[%clk 0:03:01.6]}
2... e6 {[%clk 0:03:01]} 3. Nc3 {[%clk 0:03:01.8]} 3... Bb4 {[%clk 0:03:02]} 4.
e3 {[%clk 0:03:02.4]} 4... O-O {[%clk 0:03:00.9]} 5. Ne2 {[%clk 0:03:03.6]} 5...
Re8 {[%clk 0:02:55]} 6. a3 {[%clk 0:03:04]} 6... Bf8 {[%clk 0:02:55.9]} 7. d5
{[%clk 0:03:03.5]} 7... a5 {[%clk 0:02:51]} 8. g3 {[%clk 0:03:01]} 8... exd5
{[%clk 0:02:46.5]} 9. cxd5 {[%clk 0:02:58.8]} 9... d6 {[%clk 0:02:44.2]} 10. Bg2
{[%clk 0:03:00.1]} 10... Na6 {[%clk 0:02:41.5]} 11. O-O {[%clk 0:03:00]} 11...
Nc5 {[%clk 0:02:42.3]} 12. Rb1 {[%clk 0:03:00]} 12... a4 {[%clk 0:02:41.1]} 13.
Nd4 {[%clk 0:02:57.6]} 13... Bd7 {[%clk 0:02:41.2]} 14. Qe2 {[%clk 0:02:56.2]}
14... Nfe4 {[%clk 0:02:32.2]} 15. Nxe4 {[%clk 0:02:52.6]} 15... Nxe4 {[%clk
0:02:34.1]} 16. Qc2 {[%clk 0:02:53.9]} 16... Nc5 {[%clk 0:02:29.8]} 17. Rd1
{[%clk 0:02:43.7]} 17... Qf6 {[%clk 0:02:23.4]} 18. Bd2 {[%clk 0:02:40.2]} 18...
h5 {[%clk 0:02:16.6]} 19. Bc3 {[%clk 0:02:34.1]} 19... Qe7 {[%clk 0:02:08.9]}
20. h4 {[%clk 0:02:16]} 20... g6 {[%clk 0:02:08]} 21. Nf3 {[%clk 0:02:06.8]}
21... Bg7 {[%clk 0:02:04]} 22. Bxg7 {[%clk 0:02:06.4]} 22... Kxg7 {[%clk
0:02:05.9]} 23. Qc3+ {[%clk 0:02:07.4]} 23... Qf6 {[%clk 0:02:05]} 24. Nd4
{[%clk 0:02:00.4]} 24... Qe5 {[%clk 0:01:50.2]} 25. Bf3 {[%clk 0:01:44.5]} 25...
f5 {[%clk 0:01:47.3]} 26. Rbc1 {[%clk 0:01:24.3]} 26... Ra6 {[%clk 0:01:47]} 27.
Rc2 {[%clk 0:01:15.1]} 27... Kf6 {[%clk 0:01:41.3]} 28. Kg2 {[%clk 0:01:13.9]}
28... Rb6 {[%clk 0:01:41.9]} 29. Qa5 {[%clk 0:01:13.3]} 29... Re7 {[%clk
0:01:23.1]} 30. Qa7 {[%clk 0:00:48.7]} 30... Ra6 {[%clk 0:01:01.6]} 31. Qb8
{[%clk 0:00:49.3]} 31... Re8 {[%clk 0:00:49.2]} 32. Qxc7 {[%clk 0:00:41.4]}
32... Rc8 {[%clk 0:00:50.2]} 33. Qxc8 {[%clk 0:00:22.4]} 33... Bxc8 {[%clk
0:00:50.2]} 34. Ne2 {[%clk 0:00:24]} 34... Rb6 {[%clk 0:00:45.2]} 35. Rdc1
{[%clk 0:00:21.5]} 35... Rxb2 {[%clk 0:00:40.8]} 36. Nd4 {[%clk 0:00:22.9]}
36... Rxc2 {[%clk 0:00:37.3]} 37. Rxc2 {[%clk 0:00:24.8]} 37... Bd7 {[%clk
0:00:37.9]} 38. Rb2 {[%clk 0:00:25.5]} 38... Qe8 {[%clk 0:00:35.3]} 39. Rb6
{[%clk 0:00:25.8]} 39... Ke7 {[%clk 0:00:34.2]} 40. Ne2 {[%clk 0:00:24.4]} 40...
Qd8 {[%clk 0:00:34.7]} 41. Rb4 {[%clk 0:00:23.7]} 41... b5 {[%clk 0:00:35.3]}
42. Nd4 {[%clk 0:00:21.8]} 42... Kf6 {[%clk 0:00:34.4]} 43. Be2 {[%clk
0:00:20.2]} 43... Qe8 {[%clk 0:00:34.7]} 44. Bxb5 {[%clk 0:00:18.8]} 44... Bxb5
{[%clk 0:00:34.8]} 45. Rxb5 {[%clk 0:00:20.7]} 45... Qe4+ {[%clk 0:00:35.5]} 46.
Kg1 {[%clk 0:00:21.7]} 46... Qxd5 {[%clk 0:00:35.3]} 47. Rb6 {[%clk 0:00:22.8]}
47... Ne4 {[%clk 0:00:33]} 48. Rb5 {[%clk 0:00:19]} 48... Qa2 {[%clk 0:00:32.9]}
0-1

[Event "*** Titled Tuesday Blitz"]
[Site "Chess.com"]
[Date "2018.08.07"]
[Round "7"]
[White "TijanaBlagojevic"]
[Black "misha_melnichuk"]
[Result "0-1"]
[WhiteElo "2373"]
[BlackElo "2606"]
[TimeControl "180+2"]
[EndTime "14:34:28 PDT"]
[Termination "misha_melnichuk won by resignation"]

1. c3 {[%clk 0:03:01]} 1... Nf6 {[%clk 0:03:00.5]} 2. d4 {[%clk 0:02:59.9]} 2...
d5 {[%clk 0:03:01.3]} 3. Bg5 {[%clk 0:02:59]} 3... Ne4 {[%clk 0:03:01.5]} 4. Bf4
{[%clk 0:02:59.1]} 4... Bf5 {[%clk 0:03:02.5]} 5. Nd2 {[%clk 0:03:00.1]} 5... e6
{[%clk 0:03:02.9]} 6. f3 {[%clk 0:03:01.3]} 6... Nxd2 {[%clk 0:03:00.8]} 7. Qxd2
{[%clk 0:03:02.3]} 7... c5 {[%clk 0:03:00.7]} 8. e3 {[%clk 0:03:03.2]} 8... Nc6
{[%clk 0:03:01]} 9. Ne2 {[%clk 0:03:01.1]} 9... Bd6 {[%clk 0:02:58.4]} 10. g4
{[%clk 0:03:00.2]} 10... Bg6 {[%clk 0:02:57.6]} 11. Bxd6 {[%clk 0:03:01.3]}
11... Qxd6 {[%clk 0:02:57.9]} 12. Nf4 {[%clk 0:03:03.2]} 12... f6 {[%clk
0:02:42.5]} 13. h4 {[%clk 0:02:46.4]} 13... Bf7 {[%clk 0:02:37.5]} 14. O-O-O
{[%clk 0:02:46.5]} 14... O-O-O {[%clk 0:02:32.8]} 15. Nd3 {[%clk 0:02:42.6]}
15... cxd4 {[%clk 0:02:25]} 16. cxd4 {[%clk 0:02:41.3]} 16... h5 {[%clk
0:02:23.3]} 17. g5 {[%clk 0:02:32.9]} 17... Kb8 {[%clk 0:02:11.2]} 18. Kb1
{[%clk 0:02:32.2]} 18... Bg6 {[%clk 0:02:10.9]} 19. Ka1 {[%clk 0:02:33.1]} 19...
Rc8 {[%clk 0:01:38.8]} 20. Nc5 {[%clk 0:02:16.8]} 20... b6 {[%clk 0:01:34.4]}
21. Na6+ {[%clk 0:02:09.8]} 21... Kb7 {[%clk 0:01:28.5]} 22. Bb5 {[%clk
0:02:11.2]} 22... fxg5 {[%clk 0:01:18.7]} 23. hxg5 {[%clk 0:02:10.2]} 23... Na5
{[%clk 0:01:10.1]} 24. Nb4 {[%clk 0:02:02.1]} 24... Nc4 {[%clk 0:00:57.3]} 25.
Qc3 {[%clk 0:01:46.2]} 25... a5 {[%clk 0:00:48.8]} 26. Na6 {[%clk 0:01:27.3]}
26... Be8 {[%clk 0:00:36]} 27. a4 {[%clk 0:01:25.7]} 27... Bxb5 {[%clk
0:00:32.5]} 28. axb5 {[%clk 0:01:27.6]} 28... g6 {[%clk 0:00:31.7]} 29. Rc1
{[%clk 0:01:25.7]} 29... Qd7 {[%clk 0:00:19.7]} 30. b3 {[%clk 0:01:11.4]} 30...
Nd6 {[%clk 0:00:17.6]} 31. Qd3 {[%clk 0:00:21.1]} 31... Qxb5 {[%clk 0:00:16.9]}
32. Nc5+ {[%clk 0:00:18.7]} 32... bxc5 {[%clk 0:00:14.5]} 33. Qxg6 {[%clk
0:00:18.2]} 33... cxd4 {[%clk 0:00:09.7]} 34. Qxe6 {[%clk 0:00:18.8]} 34... Qb6
{[%clk 0:00:06.6]} 35. Qxd5+ {[%clk 0:00:19.6]} 35... Ka7 {[%clk 0:00:07.3]} 36.
exd4 {[%clk 0:00:21.2]} 36... Rhd8 {[%clk 0:00:07.9]} 37. Rc6 {[%clk 0:00:21.5]}
37... Rxc6 {[%clk 0:00:08.7]} 38. Rb1 {[%clk 0:00:21.8]} 38... Nb7 {[%clk
0:00:09.9]} 39. Qc4 {[%clk 0:00:22]} 39... Rxd4 {[%clk 0:00:10.8]} 40. Qe2
{[%clk 0:00:21.6]} 40... Rb4 {[%clk 0:00:11.5]} 41. Qe5 {[%clk 0:00:22.8]} 41...
a4 {[%clk 0:00:11.3]} 42. g6 {[%clk 0:00:22.1]} 42... axb3 {[%clk 0:00:11.6]}
43. g7 {[%clk 0:00:23.3]} 43... b2+ {[%clk 0:00:12.5]} 44. Rxb2 {[%clk
0:00:23.8]} 44... Rxb2 {[%clk 0:00:11.7]} 45. Qxb2 {[%clk 0:00:25.7]} 45...
Qxb2+ {[%clk 0:00:12.1]} 46. Kxb2 {[%clk 0:00:27.6]} 46... Rg6 {[%clk
0:00:13.9]} 47. g8=Q {[%clk 0:00:29.3]} 47... Rxg8 {[%clk 0:00:14.6]} 0-1

[Event "*** Titled Tuesday Blitz"]
[Site "Chess.com"]
[Date "2018.08.07"]
[Round "7"]
[White "Mikhail_Golubev"]
[Black "gkchesstiger"]
[Result "0-1"]
[WhiteElo "2448"]
[BlackElo "2756"]
[TimeControl "180+2"]
[EndTime "14:34:55 PDT"]
[Termination "gkchesstiger won on time"]

1. e4 {[%clk 0:03:01.9]} 1... c5 {[%clk 0:02:56.4]} 2. Nf3 {[%clk 0:03:01.8]}
2... e6 {[%clk 0:02:57.3]} 3. d4 {[%clk 0:03:02.5]} 3... cxd4 {[%clk 0:02:58.5]}
4. Nxd4 {[%clk 0:03:03.3]} 4... a6 {[%clk 0:02:59.7]} 5. Bd3 {[%clk 0:03:02.3]}
5... g6 {[%clk 0:02:58]} 6. O-O {[%clk 0:02:54.9]} 6... Bg7 {[%clk 0:02:57.5]}
7. Be2 {[%clk 0:02:55.7]} 7... Nf6 {[%clk 0:02:53.2]} 8. Nc3 {[%clk 0:02:52.5]}
8... d6 {[%clk 0:02:53.9]} 9. a4 {[%clk 0:02:48.2]} 9... b6 {[%clk 0:02:54.5]}
10. f4 {[%clk 0:02:31.8]} 10... O-O {[%clk 0:02:50.4]} 11. Bf3 {[%clk 0:02:27]}
11... Ra7 {[%clk 0:02:48.5]} 12. Be3 {[%clk 0:02:26.8]} 12... Rd7 {[%clk
0:02:42]} 13. Qe2 {[%clk 0:02:26.6]} 13... Bb7 {[%clk 0:02:34.2]} 14. Nb3 {[%clk
0:02:23.2]} 14... Re7 {[%clk 0:02:08.7]} 15. Qf2 {[%clk 0:02:18.6]} 15... Nfd7
{[%clk 0:02:05.1]} 16. Rad1 {[%clk 0:01:58.7]} 16... Qc7 {[%clk 0:02:05.3]} 17.
Rd2 {[%clk 0:01:22.9]} 17... Nc5 {[%clk 0:01:53.3]} 18. Rfd1 {[%clk 0:01:15.8]}
18... Rd7 {[%clk 0:01:51.3]} 19. Bd4 {[%clk 0:01:03]} 19... Rfd8 {[%clk
0:01:34.2]} 20. Bxg7 {[%clk 0:01:01.3]} 20... Kxg7 {[%clk 0:01:34.5]} 21. Nd4
{[%clk 0:00:57.8]} 21... Nc6 {[%clk 0:01:32.5]} 22. Nde2 {[%clk 0:00:58.2]}
22... Kg8 {[%clk 0:01:07.5]} 23. Qh4 {[%clk 0:00:56.9]} 23... Rf8 {[%clk
0:00:52.8]} 24. Qf6 {[%clk 0:00:56.6]} 24... Qd8 {[%clk 0:00:52.8]} 25. Qxd8
{[%clk 0:00:53.5]} 25... Rfxd8 {[%clk 0:00:53.2]} 26. Kf2 {[%clk 0:00:51.8]}
26... Kf8 {[%clk 0:00:53.6]} 27. Nd4 {[%clk 0:00:49.5]} 27... Nxd4 {[%clk
0:00:52.4]} 28. Rxd4 {[%clk 0:00:50.3]} 28... a5 {[%clk 0:00:52.9]} 29. Nb5
{[%clk 0:00:46]} 29... Ke7 {[%clk 0:00:53.1]} 30. e5 {[%clk 0:00:35.4]} 30...
dxe5 {[%clk 0:00:48.6]} 31. Rxd7+ {[%clk 0:00:33.9]} 31... Rxd7 {[%clk
0:00:48.8]} 32. Rxd7+ {[%clk 0:00:34.4]} 32... Kxd7 {[%clk 0:00:49.6]} 33. Bxb7
{[%clk 0:00:31]} 33... Nxb7 {[%clk 0:00:50.4]} 34. fxe5 {[%clk 0:00:31]} 34...
Nc5 {[%clk 0:00:51.2]} 35. b3 {[%clk 0:00:26.4]} 35... Kc6 {[%clk 0:00:51.4]}
36. Ke3 {[%clk 0:00:17.2]} 36... Kd5 {[%clk 0:00:49.4]} 37. Nd6 {[%clk
0:00:16.5]} 37... f5 {[%clk 0:00:39.9]} 38. Nc8 {[%clk 0:00:16.3]} 38... Kc6
{[%clk 0:00:40.4]} 39. Kd4 {[%clk 0:00:15]} 39... Ne4 {[%clk 0:00:38.9]} 40.
Na7+ {[%clk 0:00:13.3]} 40... Kd7 {[%clk 0:00:38.6]} 41. Nb5 {[%clk 0:00:14.3]}
41... g5 {[%clk 0:00:36]} 42. c3 {[%clk 0:00:14.2]} 42... Nc5 {[%clk 0:00:35.1]}
43. Kc4 {[%clk 0:00:13.6]} 43... g4 {[%clk 0:00:33.7]} 44. g3 {[%clk 0:00:10.9]}
44... h5 {[%clk 0:00:33.4]} 45. b4 {[%clk 0:00:11.2]} 45... Ne4 {[%clk
0:00:31.7]} 46. Nd4 {[%clk 0:00:07.3]} 46... f4 {[%clk 0:00:23.1]} 47. gxf4
{[%clk 0:00:06.5]} 47... h4 {[%clk 0:00:24.1]} 48. Kd3 {[%clk 0:00:04.5]} 48...
g3 {[%clk 0:00:24.7]} 49. hxg3 {[%clk 0:00:02.5]} 49... Nxg3 {[%clk 0:00:25.6]}
50. Nf3 {[%clk 0:00:02.4]} 50... h3 {[%clk 0:00:26.3]} 51. Nh2 {[%clk
0:00:03.1]} 51... Kc6 {[%clk 0:00:26.6]} 52. Ke3 {[%clk 0:00:03.1]} 52... Kd5
{[%clk 0:00:27.2]} 53. Kd3 {[%clk 0:00:02.8]} 53... Nh5 {[%clk 0:00:25.9]} 0-1

[Event "*** Titled Tuesday Blitz"]
[Site "Chess.com"]
[Date "2018.08.07"]
[Round "7"]
[White "wonderfultime"]
[Black "platy3"]
[Result "1/2-1/2"]
[WhiteElo "2850"]
[BlackElo "2754"]
[TimeControl "180+2"]
[EndTime "14:34:56 PDT"]
[Termination "Game drawn by repetition"]

1. d4 {[%clk 0:03:01.4]} 1... Nf6 {[%clk 0:03:00.8]} 2. c4 {[%clk 0:03:02.6]}
2... e6 {[%clk 0:03:02]} 3. Nf3 {[%clk 0:03:03.4]} 3... d5 {[%clk 0:03:03.3]} 4.
Nc3 {[%clk 0:03:03.3]} 4... dxc4 {[%clk 0:03:04.5]} 5. Bg5 {[%clk 0:03:00.4]}
5... a6 {[%clk 0:03:02.4]} 6. a4 {[%clk 0:02:54.9]} 6... c5 {[%clk 0:02:54.6]}
7. dxc5 {[%clk 0:02:15.9]} 7... Bxc5 {[%clk 0:02:48.4]} 8. Qxd8+ {[%clk
0:02:07]} 8... Kxd8 {[%clk 0:02:50.3]} 9. Ne5 {[%clk 0:02:03.7]} 9... Ke7 {[%clk
0:02:46.5]} 10. g3 {[%clk 0:01:57.3]} 10... h6 {[%clk 0:02:43.2]} 11. Bxf6+
{[%clk 0:01:58.2]} 11... gxf6 {[%clk 0:02:43.5]} 12. Nxc4 {[%clk 0:01:59.4]}
12... Bd7 {[%clk 0:02:40.3]} 13. Bg2 {[%clk 0:02:00.4]} 13... Bc6 {[%clk
0:02:41.6]} 14. O-O {[%clk 0:01:57.7]} 14... Bxg2 {[%clk 0:02:40.3]} 15. Kxg2
{[%clk 0:01:59.6]} 15... Nd7 {[%clk 0:02:20]} 16. Rfd1 {[%clk 0:01:58.1]} 16...
f5 {[%clk 0:02:14.1]} 17. Rd3 {[%clk 0:01:50.9]} 17... Rhc8 {[%clk 0:02:10.2]}
18. Rad1 {[%clk 0:01:48.5]} 18... Nf6 {[%clk 0:02:11.1]} 19. a5 {[%clk
0:01:37.8]} 19... Rd8 {[%clk 0:01:52.5]} 20. Na4 {[%clk 0:01:36.6]} 20... Rxd3
{[%clk 0:01:48.8]} 21. Rxd3 {[%clk 0:01:38.5]} 21... Ba7 {[%clk 0:01:29]} 22.
Rb3 {[%clk 0:01:09.3]} 22... Rb8 {[%clk 0:01:29.9]} 23. Nab6 {[%clk 0:01:08]}
23... Ne4 {[%clk 0:01:16.1]} 24. Ne5 {[%clk 0:00:57.8]} 24... Nd6 {[%clk
0:01:01.6]} 25. e3 {[%clk 0:00:32.9]} 25... Rd8 {[%clk 0:00:57.9]} 26. Nbc4
{[%clk 0:00:25.8]} 26... Nb5 {[%clk 0:00:54.6]} 27. Na3 {[%clk 0:00:25.8]} 27...
Rd5 {[%clk 0:00:53.2]} 28. Nxb5 {[%clk 0:00:24.7]} 28... Rxb5 {[%clk 0:00:46.4]}
29. Rxb5 {[%clk 0:00:25.5]} 29... axb5 {[%clk 0:00:48.3]} 30. Kf3 {[%clk
0:00:25.7]} 30... Bb8 {[%clk 0:00:35]} 31. Nd3 {[%clk 0:00:24.8]} 31... Kd6
{[%clk 0:00:34]} 32. e4 {[%clk 0:00:19.5]} 32... fxe4+ {[%clk 0:00:31.9]} 33.
Kxe4 {[%clk 0:00:21.4]} 33... f5+ {[%clk 0:00:33.6]} 34. Kd4 {[%clk 0:00:10.7]}
34... e5+ {[%clk 0:00:34.1]} 35. Kc3 {[%clk 0:00:12.1]} 35... Kd5 {[%clk
0:00:33.1]} 36. f3 {[%clk 0:00:12.2]} 36... e4 {[%clk 0:00:26.7]} 37. Nb4+
{[%clk 0:00:13.1]} 37... Kc5 {[%clk 0:00:23.6]} 38. f4 {[%clk 0:00:14.6]} 38...
Bd6 {[%clk 0:00:12.7]} 39. Nc2 {[%clk 0:00:15.6]} 39... Bc7 {[%clk 0:00:06.9]}
40. b4+ {[%clk 0:00:08.5]} 40... Kd5 {[%clk 0:00:08.3]} 41. Nd4 {[%clk
0:00:09.8]} 41... e3 {[%clk 0:00:05.5]} 42. Nxf5 {[%clk 0:00:07.3]} 42... Ke4
{[%clk 0:00:05.8]} 43. Nh4 {[%clk 0:00:06.3]} 43... Bd8 {[%clk 0:00:06]} 44. Ng2
{[%clk 0:00:05.7]} 44... Bf6+ {[%clk 0:00:07.1]} 45. Kc2 {[%clk 0:00:06.5]}
45... Kf3 {[%clk 0:00:07.5]} 46. Ne1+ {[%clk 0:00:07.9]} 46... Kf2 {[%clk
0:00:06.3]} 47. Nd3+ {[%clk 0:00:09]} 47... Kf3 {[%clk 0:00:02.9]} 48. Ne1+
{[%clk 0:00:05.8]} 48... Kf2 {[%clk 0:00:03.8]} 49. Nd3+ {[%clk 0:00:07.1]}
49... Kf3 {[%clk 0:00:05.3]} 50. Ne1+ {[%clk 0:00:06.4]} 50... Kf2 {[%clk
0:00:06.6]} 51. Nd3+ {[%clk 0:00:07.9]} 1/2-1/2

[Event "*** Titled Tuesday Blitz"]
[Site "Chess.com"]
[Date "2018.08.07"]
[Round "7"]
[White "BillForster"]
[Black "aa175"]
[Result "0-1"]
[WhiteElo "1626"]
[BlackElo "1923"]
[TimeControl "180+2"]
[EndTime "14:35:06 PDT"]
[Termination "aa175 won on time"]

1. d4 {[%clk 0:03:01.9]} 1... e5 {[%clk 0:03:00.8]} 2. dxe5 {[%clk 0:02:59.5]}
2... Nc6 {[%clk 0:03:01.6]} 3. f4 {[%clk 0:02:53.6]} 3... d6 {[%clk 0:03:00.8]}
4. exd6 {[%clk 0:02:48.4]} 4... Bxd6 {[%clk 0:03:01.2]} 5. Nf3 {[%clk
0:02:47.4]} 5... Nf6 {[%clk 0:02:59.1]} 6. Nc3 {[%clk 0:02:44.1]} 6... O-O
{[%clk 0:02:52.4]} 7. e4 {[%clk 0:02:43.1]} 7... Bb4 {[%clk 0:02:50.4]} 8. Qxd8
{[%clk 0:02:33.8]} 8... Rxd8 {[%clk 0:02:52.3]} 9. Bd3 {[%clk 0:02:26.7]} 9...
Bg4 {[%clk 0:02:44.6]} 10. O-O {[%clk 0:02:24.2]} 10... Bc5+ {[%clk 0:02:36.2]}
11. Kh1 {[%clk 0:02:22.9]} 11... Nb4 {[%clk 0:02:28.7]} 12. Ne5 {[%clk
0:01:42.4]} 12... Nxd3 {[%clk 0:01:42.9]} 13. cxd3 {[%clk 0:01:38.1]} 13... h5
{[%clk 0:01:34.7]} 14. h3 {[%clk 0:01:23.1]} 14... Be6 {[%clk 0:01:29.4]} 15. f5
{[%clk 0:01:15.7]} 15... Bc8 {[%clk 0:01:26.2]} 16. Bf4 {[%clk 0:01:03.7]} 16...
c6 {[%clk 0:01:09.2]} 17. Rad1 {[%clk 0:01:01.4]} 17... Bd4 {[%clk 0:00:50.9]}
18. Nf3 {[%clk 0:00:53.3]} 18... c5 {[%clk 0:00:45.2]} 19. Nxd4 {[%clk
0:00:38.6]} 19... cxd4 {[%clk 0:00:47.1]} 20. Ne2 {[%clk 0:00:35.9]} 20... b6
{[%clk 0:00:41.6]} 21. Nc1 {[%clk 0:00:25]} 21... Ba6 {[%clk 0:00:40.6]} 22. Rf2
{[%clk 0:00:24.3]} 22... Rac8 {[%clk 0:00:37.2]} 23. Rdf1 {[%clk 0:00:18.1]}
23... Nxe4 {[%clk 0:00:35.1]} 24. dxe4 {[%clk 0:00:16.6]} 24... Bxf1 {[%clk
0:00:37]} 25. Rxf1 {[%clk 0:00:16.6]} 25... d3 {[%clk 0:00:36.4]} 26. Bd2 {[%clk
0:00:14.9]} 26... Rc2 {[%clk 0:00:36.1]} 27. Rd1 {[%clk 0:00:13.5]} 27... Rdc8
{[%clk 0:00:34]} 28. Bc3 {[%clk 0:00:13]} 28... d2 {[%clk 0:00:24.5]} 29. Ne2
{[%clk 0:00:13.6]} 29... b5 {[%clk 0:00:19.6]} 30. Rxd2 {[%clk 0:00:14.4]} 30...
Rxd2 {[%clk 0:00:19.9]} 31. Bxd2 {[%clk 0:00:14.1]} 31... Rc2 {[%clk 0:00:21.8]}
32. Be3 {[%clk 0:00:09.6]} 32... Rxe2 {[%clk 0:00:22.6]} 33. Bxa7 {[%clk
0:00:09.6]} 33... Rxb2 {[%clk 0:00:23.2]} 34. a3 {[%clk 0:00:08.4]} 34... Ra2
{[%clk 0:00:25.1]} 35. Bc5 {[%clk 0:00:08.1]} 35... Re2 {[%clk 0:00:25.9]} 36.
f6 {[%clk 0:00:03]} 36... gxf6 {[%clk 0:00:23.1]} 37. Kh2 {[%clk 0:00:02.9]}
37... Rxe4 {[%clk 0:00:23.6]} 38. Kg3 {[%clk 0:00:03.8]} 38... Rc4 {[%clk
0:00:24.2]} 39. Bb4 {[%clk 0:00:03.1]} 39... h4+ {[%clk 0:00:24.3]} 40. Kf3
{[%clk 0:00:04]} 40... Kg7 {[%clk 0:00:26.2]} 41. Ke3 {[%clk 0:00:04.3]} 41...
Kg6 {[%clk 0:00:26.8]} 42. Kd3 {[%clk 0:00:05.2]} 42... Kf5 {[%clk 0:00:23.7]}
43. Ke3 {[%clk 0:00:05.2]} 43... Ke5 {[%clk 0:00:20.8]} 44. Kf3 {[%clk
0:00:04.6]} 44... Rf4+ {[%clk 0:00:20.2]} 45. Ke3 {[%clk 0:00:05.1]} 45... Rc4
{[%clk 0:00:20.7]} 46. Kf3 {[%clk 0:00:05.5]} 46... f5 {[%clk 0:00:21.3]} 47.
Ke3 {[%clk 0:00:05.7]} 47... Re4+ {[%clk 0:00:20]} 48. Kf3 {[%clk 0:00:06]}
48... Kd4 {[%clk 0:00:21.1]} 49. Bf8 {[%clk 0:00:03.4]} 49... Kd3 {[%clk
0:00:04.2]} 50. Bb4 {[%clk 0:00:02.8]} 50... Rc4 {[%clk 0:00:04.5]} 51. Kf2
{[%clk 0:00:02]} 51... Kc2 {[%clk 0:00:05.3]} 52. Kf3 {[%clk 0:00:02.6]} 52...
Kb3 {[%clk 0:00:03.8]} 0-1

[Event "*** Titled Tuesday Blitz"]
[Site "Chess.com"]
[Date "2018.08.07"]
[Round "7"]
[White "KRASAVCHIK2002"]
[Black "dmosesov"]
[Result "0-1"]
[WhiteElo "2193"]
[BlackElo "2274"]
[TimeControl "180+2"]
[EndTime "14:35:22 PDT"]
[Termination "dmosesov won by resignation"]

1. d4 {[%clk 0:02:56.6]} 1... Nf6 {[%clk 0:02:59.9]} 2. Nf3 {[%clk 0:02:57.3]}
2... b6 {[%clk 0:02:59.8]} 3. Bg5 {[%clk 0:02:57.7]} 3... Ne4 {[%clk 0:03:00]}
4. Bf4 {[%clk 0:02:57.5]} 4... Bb7 {[%clk 0:03:00.3]} 5. e3 {[%clk 0:02:58.2]}
5... g6 {[%clk 0:02:58.8]} 6. Bd3 {[%clk 0:02:54.8]} 6... Bg7 {[%clk 0:02:59.4]}
7. c3 {[%clk 0:02:55.6]} 7... O-O {[%clk 0:02:57.5]} 8. Nbd2 {[%clk 0:02:54.9]}
8... Nf6 {[%clk 0:02:58.6]} 9. Qe2 {[%clk 0:02:54.2]} 9... d6 {[%clk 0:02:58.9]}
10. e4 {[%clk 0:02:52.1]} 10... Nh5 {[%clk 0:02:52]} 11. Bg3 {[%clk 0:02:50]}
11... c5 {[%clk 0:02:48.7]} 12. d5 {[%clk 0:02:48.2]} 12... Nd7 {[%clk
0:02:46.9]} 13. O-O {[%clk 0:02:48]} 13... Nxg3 {[%clk 0:02:47.1]} 14. hxg3
{[%clk 0:02:48.6]} 14... a6 {[%clk 0:02:45.7]} 15. Rab1 {[%clk 0:02:43]} 15...
b5 {[%clk 0:02:45.8]} 16. c4 {[%clk 0:02:42.6]} 16... Nb6 {[%clk 0:02:15.9]} 17.
b4 {[%clk 0:02:12.9]} 17... Na4 {[%clk 0:02:06.1]} 18. Qe3 {[%clk 0:01:50.3]}
18... Nc3 {[%clk 0:02:00.1]} 19. Rb3 {[%clk 0:01:49]} 19... cxb4 {[%clk
0:02:00.5]} 20. Rxb4 {[%clk 0:01:37.5]} 20... a5 {[%clk 0:01:55.3]} 21. Rb3
{[%clk 0:01:19]} 21... b4 {[%clk 0:01:56.1]} 22. a3 {[%clk 0:01:06.7]} 22... Bc8
{[%clk 0:01:37.4]} 23. axb4 {[%clk 0:01:04.7]} 23... axb4 {[%clk 0:01:39.3]} 24.
Rxb4 {[%clk 0:01:00.6]} 24... Ra3 {[%clk 0:01:31]} 25. Rb3 {[%clk 0:00:57.7]}
25... Qa5 {[%clk 0:01:19.8]} 26. Rxa3 {[%clk 0:00:49]} 26... Qxa3 {[%clk
0:01:21.7]} 27. e5 {[%clk 0:00:49.5]} 27... Na4 {[%clk 0:00:59.5]} 28. Ne4
{[%clk 0:00:21.4]} 28... Nb2 {[%clk 0:00:34.8]} 29. Be2 {[%clk 0:00:18.1]} 29...
Qxe3 {[%clk 0:00:35]} 30. fxe3 {[%clk 0:00:18.9]} 30... dxe5 {[%clk 0:00:36.5]}
31. Rb1 {[%clk 0:00:18.2]} 31... Na4 {[%clk 0:00:36]} 32. Rb4 {[%clk 0:00:18.4]}
32... Bf5 {[%clk 0:00:34.4]} 33. Nfd2 {[%clk 0:00:12.5]} 33... Ra8 {[%clk
0:00:30.5]} 34. Bd1 {[%clk 0:00:06.8]} 34... Bd7 {[%clk 0:00:23.4]} 35. c5
{[%clk 0:00:07]} 35... f5 {[%clk 0:00:24]} 36. c6 {[%clk 0:00:08]} 36... fxe4
{[%clk 0:00:19.3]} 37. cxd7 {[%clk 0:00:08.9]} 37... Nc5 {[%clk 0:00:20.6]} 38.
Rc4 {[%clk 0:00:03.7]} 38... Nxd7 {[%clk 0:00:21.5]} 39. Nxe4 {[%clk 0:00:04]}
39... Ra1 {[%clk 0:00:20.5]} 40. Rc8+ {[%clk 0:00:04.3]} 40... Bf8 {[%clk
0:00:19.8]} 41. Nf2 {[%clk 0:00:06.2]} 41... Nf6 {[%clk 0:00:19.4]} 42. e4
{[%clk 0:00:05.2]} 42... Nxe4 {[%clk 0:00:20.5]} 43. Nxe4 {[%clk 0:00:06.4]}
43... Rxd1+ {[%clk 0:00:22]} 44. Kf2 {[%clk 0:00:07.6]} 44... Rxd5 {[%clk
0:00:23.9]} 45. Ng5 {[%clk 0:00:08.4]} 45... Rd6 {[%clk 0:00:21.2]} 46. Nxh7
{[%clk 0:00:09]} 46... Kxh7 {[%clk 0:00:20.5]} 47. Rxf8 {[%clk 0:00:10.7]} 47...
Kg7 {[%clk 0:00:22.1]} 48. Ra8 {[%clk 0:00:11.2]} 48... Rb6 {[%clk 0:00:22.7]}
49. Ra7 {[%clk 0:00:11.6]} 49... Kf6 {[%clk 0:00:20.5]} 50. Ra4 {[%clk
0:00:12.4]} 50... Rb2+ {[%clk 0:00:21.1]} 51. Kf3 {[%clk 0:00:13.7]} 51... Kf5
{[%clk 0:00:21.5]} 52. Rc4 {[%clk 0:00:12.7]} 52... e4+ {[%clk 0:00:16]} 53. Ke3
{[%clk 0:00:12.3]} 53... Rxg2 {[%clk 0:00:16.4]} 54. Rc5+ {[%clk 0:00:13.6]}
54... e5 {[%clk 0:00:17.5]} 0-1